lending/lending_fUSD_20241120
["ID","MTS","AMOUNT","RATE_DAILY","PERIOD"]
[342774468,1732140638389,-50000.0,0.00048,38]
[342774469,1732140638398,-50000.0,0.00048,48]
[342774470,1732140638407,-151.0,0.00048,120]
[342774471,1732140638418,-100032.67825707,0.00048,120]
[342774472,1732140638428,-271.238,0.0004815,120]
[342774473,1732140638437,-205.0,0.0004816,30]
[342774474,1732140638447,-2110.0,0.0004838,30]
[342774475,1732140638457,-16672.07112145,0.000487,120]
[342774476,1732140638467,-200.0,0.00048706,2]
[342774477,1732140638477,-200.0,0.00048707,2]
[342774478,1732140638487,-200.0,0.00048708,2]
[342774479,1732140638496,-1090.51796372,0.00048711,2]
[342774480,1732140638505,-200.0,0.0004872,2]
[342774481,1732140638514,-742.31935911,0.00048721,2]
[342774482,1732140638524,-200.0,0.00048721,2]
[342774483,1732140638533,-200.0,0.00048722,2]
[342774484,1732140638542,-200.0,0.00048724,2]
[342774485,1732140638551,-200.0,0.00048726,2]
[342774486,1732140638561,-2182.72504606,0.00048726,2]
[342774487,1732140638570,-3747.16746109,0.00048727,2]
[342774488,1732140638579,-200.0,0.00048729,2]
[342774489,1732140638588,-2182.72504606,0.00048732,2]
[342774490,1732140638597,-497.35397058,0.00048732,2]
[342774491,1732140638608,-3747.16746109,0.00048732,2]
[342774492,1732140638619,-30708.58941623,0.00048738,2]
[342774494,1732140638629,-200.0,0.00048739,2]
[342774496,1732140638638,-30708.58941623,0.0004874,2]
[342774498,1732140638648,-2518.92363251,0.00048745,2]
[342774500,1732140638657,-3747.16746109,0.00048745,2]
[342774502,1732140638666,-200.0,0.00048745,2]
[342774504,1732140638675,-730.64703566,0.00048746,2]
[342774506,1732140638684,-200.0,0.00048748,2]
[342774508,1732140638693,-3747.16746109,0.00048751,2]
[342774510,1732140638703,-200.0,0.00048751,2]
[342774512,1732140638712,-30708.58941623,0.00048756,2]
[342774514,1732140638720,-2182.72504606,0.00048761,2]
[342774516,1732140638729,-1133.051,0.00048763,84]
[342774518,1732140638738,-200.0,0.00048765,2]
[342774520,1732140638747,-200.0,0.00048769,2]
[342774522,1732140638757,-4969.45807504,0.0004877,2]
[342774524,1732140638766,-200.0,0.00048771,2]
[342774526,1732140638775,-30708.58941623,0.00048773,2]
[342774528,1732140638784,-2518.92363251,0.00048778,2]
[342774530,1732140638793,-200.0,0.00048781,2]
[342774532,1732140638801,-742.31935911,0.00048785,2]
[342774534,1732140638810,-200.0,0.00048788,2]
[342774536,1732140638820,-742.31935911,0.00048788,2]
[342774538,1732140638832,-742.31935911,0.0004879,2]
[342774540,1732140638841,-2518.92363251,0.00048791,2]
[342774542,1732140638850,-200.0,0.00048793,2]
[342774544,1732140638861,-742.31935911,0.00048796,2]
[342774546,1732140638870,-730.64703566,0.00048799,2]
[342774547,1732140638879,-1090.51796372,0.00048803,2]
[342774549,1732140638888,-742.31935911,0.00048806,2]
[342774551,1732140638897,-497.35397058,0.00048807,2]
[342774553,1732140638906,-200.0,0.00048813,2]
[342774555,1732140638915,-497.35397058,0.00048815,2]
[342774557,1732140638924,-200.0,0.00048819,2]
[342774559,1732140638933,-200.0,0.0004882,2]
[342774561,1732140638942,-742.31935911,0.00048829,2]
[342774563,1732140638951,-200.0,0.00048829,2]
[342774565,1732140638960,-742.31935911,0.00048836,2]
[342774568,1732140638974,-200.0,0.00048838,2]
[342774570,1732140638983,-730.64703566,0.00048839,2]
[342774572,1732140638992,-2182.72504606,0.00048841,2]
[342774573,1732140639001,-4969.45807504,0.00048841,2]
[342774576,1732140639010,-150.0,0.00048843,7]
[342774578,1732140639019,-200.0,0.00048849,2]
[342774580,1732140639029,-730.64703566,0.00048854,2]
[342774582,1732140639038,-200.0,0.00048857,2]
[342774584,1732140639047,-200.0,0.00048858,2]
[342774586,1732140639056,-30708.58941623,0.0004886,2]
[342774588,1732140639066,-730.64703566,0.00048867,2]
[342774590,1732140639076,-3747.16746109,0.00048868,2]
[342774592,1732140639085,-2518.92363251,0.00048871,2]
[342774594,1732140639094,-4969.45807504,0.00048872,2]
[342774596,1732140639103,-30708.58941623,0.00048873,2]
[342774598,1732140639116,-2110.0,0.0004888,30]
[342774600,1732140639125,-497.35397058,0.00048886,2]
[342774602,1732140639134,-200.0,0.00048894,2]
[342774604,1732140639143,-200.0,0.00048895,2]
[342774606,1732140639153,-200.0,0.00048898,2]
[342774608,1732140639162,-200.0,0.00048899,2]
[342774610,1732140639171,-150.0,0.00048903,7]
[342774612,1732140639180,-2518.92363251,0.00048904,2]
[342774614,1732140639190,-23447.25265297,0.00048906,2]
[342774615,1732140639199,-4969.45807504,0.00048907,2]
[342774617,1732140639208,-2518.92363251,0.0004891,2]
[342774619,1732140639217,-30708.58941623,0.00048914,2]
[342774622,1732140639227,-200.0,0.00048918,2]
[342774623,1732140639235,-2182.72504606,0.00048922,2]
[342774626,1732140639246,-200.0,0.00048925,2]
[342774628,1732140639255,-497.35397058,0.00048926,2]
[342774629,1732140639264,-497.35397058,0.00048926,2]
[342774632,1732140639274,-730.64703566,0.00048929,2]
[342774633,1732140639283,-200.0,0.00048931,2]
[342774635,1732140639292,-200.0,0.00048935,2]
[342774637,1732140639301,-1090.51796372,0.0004894,2]
[342774639,1732140639311,-200.0,0.0004894,2]
[342774641,1732140639320,-3747.16746109,0.00048942,2]
[342774643,1732140639329,-497.35397058,0.00048947,2]
[342774645,1732140639339,-200.0,0.00048948,2]
[342774647,1732140639348,-4969.45807504,0.00048949,2]
[342774649,1732140639358,-200.0,0.00048949,2]
[342774651,1732140639367,-200.0,0.0004895,2]
[342774653,1732140639377,-2182.72504606,0.0004895,2]
[342774655,1732140639387,-200.0,0.00048953,2]
[342774657,1732140639396,-200.0,0.00048957,2]
[342774659,1732140639406,-2182.72504606,0.00048957,2]
[342774661,1732140639416,-200.0,0.00048959,2]
[342774663,1732140639425,-1090.51796372,0.0004896,2]
[342774665,1732140639434,-200.0,0.00048964,2]
[342774667,1732140639444,-2518.92363251,0.00048964,2]
[342774669,1732140639453,-200.0,0.00048964,2]
[342774671,1732140639463,-200.0,0.00048966,2]
[342774674,1732140639472,-4969.45807504,0.00048967,2]
[342774676,1732140639482,-200.0,0.00048971,2]
[342774678,1732140639492,-1090.51796372,0.00048971,2]
[342774680,1732140639501,-1090.51796372,0.00048975,2]
[342774682,1732140639510,-1090.51796372,0.00048976,2]
[342774684,1732140639519,-4969.45807504,0.00048977,2]
[342774686,1732140639529,-1090.51796372,0.00048979,2]
[342774688,1732140639538,-200.0,0.00048982,2]
[342774690,1732140639547,-200.0,0.00048984,2]
[342774692,1732140639557,-200.0,0.00048984,2]
[342774693,1732140639567,-497.35397058,0.00048984,2]
[342774695,1732140639576,-3747.16746109,0.00048989,2]
[342774697,1732140639586,-4969.45807504,0.00048991,2]
[342774699,1732140639596,-200.0,0.00048991,2]
[342774701,1732140639605,-2518.92363251,0.00048992,2]
[342774703,1732140639615,-3747.16746109,0.00048994,2]
[342774705,1732140639624,-730.64703566,0.00048997,2]
[342774707,1732140639634,-730.64703566,0.00048998,2]
[342774709,1732140639644,-200.0,0.00048999,2]
[342774712,1732140639654,-30708.58941623,0.00048999,2]
[342774715,1732140639663,-200.0,0.00048999,2]
[342774717,1732140639674,-200.0,0.00048999,2]
[342774719,1732140639683,-50000.0,0.00049,29]
[342774721,1732140639693,-50000.0,0.00049,39]
[342774724,1732140639702,-50000.0,0.00049,49]
[342774726,1732140639711,-60000.0,0.00049,120]
[342774728,1732140639721,-700.0,0.00049,2]
[342774730,1732140639730,-150.0,0.00049046,7]
[342774732,1732140639739,-150.0,0.00049048,7]
[342774734,1732140639749,-14455.24555555,0.000491,120]
[342774736,1732140639759,-39000.0,0.000491,120]
[342774738,1732140639768,-1000.0,0.000491,30]
[342774740,1732140639778,-150.0,0.00049197,7]
[342774742,1732140639787,-150.0,0.00049232,7]
[342774744,1732140639797,-150.0,0.0004924,7]
[342774746,1732140639806,-1054.0,0.00049286,30]
[342774748,1732140639819,-150.0,0.00049291,7]
[342774750,1732140639829,-150.0,0.00049317,7]
[342774752,1732140639839,-150.0,0.00049352,7]
[342774754,1732140639848,-150.0,0.00049354,7]
[342774776,1732140640064,-342.97,0.00049355,2]
[342774778,1732140640074,-2110.0,0.0004938,30]
[342774780,1732140640084,-150.0,0.00049395,7]
[342774782,1732140640094,-150.0,0.00049433,7]
[342774784,1732140640104,-150.0,0.00049438,7]
[342774786,1732140640117,-150.0,0.00049439,7]
[342774801,1732140640258,-7160.23985376,0.0004949,120]
[342774803,1732140640268,-30000.0,0.000495,2]
[342774805,1732140640277,-14345.75126386,0.000495,120]
[342774808,1732140640289,-150.0,0.00049507,7]
[342774810,1732140640299,-13096.35027686,0.00049517,45]
[342774812,1732140640308,-150.0,0.00049523,7]
[342774813,1732140640318,-6543.10778284,0.00049524,45]
[342774816,1732140640328,-253.21415613,0.00049525,45]
[342774817,1732140640339,-150.0,0.00049545,7]
[342774820,1732140640350,-22483.00476708,0.00049553,45]
[342774821,1732140640360,-200.0,0.00049555,45]
[342774824,1732140640372,-15113.54179556,0.00049556,45]
[342774826,1732140640382,-200.0,0.00049564,45]
[342774827,1732140640391,-322.18495804,0.0004957,10]
[342774830,1732140640401,-388.68456884,0.0004957,45]
[342774832,1732140640410,-22483.00476708,0.00049571,45]
[342774834,1732140640420,-259.35490465,0.00049572,2]
[342774836,1732140640430,-200.0,0.00049574,45]
[342774838,1732140640440,-150.0,0.00049579,7]
[342774840,1732140640450,-200.0,0.00049581,45]
[342774842,1732140640460,-13096.35027686,0.0004959,45]
[342774844,1732140640470,-509.19930403,0.00049594,45]
[342774846,1732140640480,-200.0,0.00049621,45]
[342774848,1732140640490,-246.11407793,0.00049623,45]
[342774850,1732140640500,-150.0,0.00049636,7]
[342774852,1732140640510,-200.0,0.00049638,45]
[342774854,1732140640519,-200.0,0.00049654,45]
[342774856,1732140640530,-200.0,0.00049655,45]
[342774858,1732140640540,-6543.10778284,0.00049661,45]
[342774860,1732140640550,-150.0,0.00049663,7]
[342774862,1732140640560,-150.0,0.00049664,7]
[342774864,1732140640570,-29816.74845079,0.00049669,45]
[342774866,1732140640579,-29816.74845079,0.0004967,45]
[342774868,1732140640589,-122834.35766523,0.0004967,45]
[342774870,1732140640598,-200.0,0.00049672,45]
[342774872,1732140640608,-150.0,0.00049675,7]
[342774874,1732140640618,-200.0,0.00049682,45]
[342774876,1732140640627,-150.0,0.00049686,7]
[342774878,1732140640637,-200.0,0.00049696,45]
[342774880,1732140640646,-2984.12382398,0.00049697,45]
[342774882,1732140640656,-4383.88221449,0.00049698,45]
[342774884,1732140640666,-388.68456884,0.00049698,45]
[342774886,1732140640675,-175.08,0.000497,120]
[342774888,1732140640684,-3600.0,0.000497,18]
[342774890,1732140640693,-150.0,0.000497,23]
[342774892,1732140640702,-246.11407793,0.00049713,45]
[342774893,1732140640712,-298.24841983,0.00049721,45]
[342774895,1732140640722,-4453.91615521,0.00049733,45]
[342774897,1732140640732,-122834.35766523,0.00049737,45]
[342774899,1732140640741,-200.0,0.00049738,45]
[342774901,1732140640751,-163779.14355367,0.00049754,3]
[342774903,1732140640761,-298.24841983,0.00049754,45]
[342774905,1732140640770,-200.0,0.00049756,45]
[342774907,1732140640780,-4453.91615521,0.00049758,45]
[342774909,1732140640789,-4383.88221449,0.00049759,45]
[342774911,1732140640798,-200.0,0.00049761,45]
[342774913,1732140640808,-13434.25937382,0.00049762,3]
[342774915,1732140640817,-26503.77640069,0.00049764,3]
[342774917,1732140640827,-150.0,0.00049765,7]
[342774919,1732140640836,-509.19930403,0.00049776,45]
[342774921,1732140640847,-2984.12382398,0.00049779,45]
[342774923,1732140640856,-150.0,0.00049787,7]
[342774925,1732140640875,-200.0,0.00049787,45]
[342774927,1732140640884,-26503.77640069,0.00049788,3]
[342774929,1732140640894,-15113.54179556,0.00049789,45]
[342774931,1732140640904,-13434.25937382,0.00049792,3]
[342774933,1732140640913,-253.21415613,0.00049797,45]
[342774935,1732140640923,-80089.6221601,0.00049799,61]
[342774937,1732140640933,-2756068.965576,0.000498,34]
[342774939,1732140640943,-430208.21043601,0.000498,120]
[342774941,1732140640953,-499999.0,0.000498,120]
[342774943,1732140640962,-499999.0,0.000498,120]
[342774945,1732140640972,-147868.68430158,0.000498,120]
[342774947,1732140640982,-267804.64984392,0.000498,120]
[342774949,1732140640992,-276.64747902,0.000498,120]
[342774951,1732140641002,-92686.76515697,0.000498,120]
[342774953,1732140641012,-700.0,0.000498,18]
[342774955,1732140641022,-19984.89312628,0.00049801,3]
[342774958,1732140641033,-345.49739451,0.00049809,3]
[342774960,1732140641042,-150.0,0.00049813,7]
[342774962,1732140641052,-1966.13181033,0.00049816,15]
[342774964,1732140641061,-3959.0365824,0.00049816,3]
[342774966,1732140641071,-218.76806926,0.00049818,3]
[342774967,1732140641081,-150.0,0.00049821,7]
[342774970,1732140641092,-225.07924988,0.00049825,3]
[342774972,1732140641101,-150.0,0.00049827,7]
[342774974,1732140641115,-19984.89312628,0.00049836,3]
[342774976,1732140641124,-150.0,0.00049838,7]
[342774978,1732140641134,-600.0,0.00049839,18]
[342774980,1732140641144,-600.0,0.00049839,18]
[342774982,1732140641154,-600.0,0.00049839,18]
[342774984,1732140641165,-600.0,0.00049839,18]
[342774986,1732140641175,-600.0,0.00049839,18]
[342774988,1732140641184,-600.0,0.00049839,18]
[342774990,1732140641194,-600.0,0.00049839,18]
[342774992,1732140641205,-600.0,0.00049839,18]
[342774994,1732140641215,-600.0,0.00049839,18]
[342774996,1732140641224,-600.0,0.00049839,18]
[342774997,1732140641234,-600.0,0.00049839,38]
[342774998,1732140641244,-600.0,0.00049851,18]
[342774999,1732140641253,-600.0,0.00049851,18]
[342775000,1732140641263,-600.0,0.00049851,18]
[342775001,1732140641272,-600.0,0.00049851,18]
[342775002,1732140641282,-600.0,0.00049851,18]
[342775003,1732140641292,-600.0,0.00049851,18]
[342775004,1732140641302,-600.0,0.00049851,18]
[342775005,1732140641311,-600.0,0.00049851,18]
[342775007,1732140641320,-600.0,0.00049851,18]
[342775009,1732140641329,-600.0,0.00049851,18]
[342775011,1732140641339,-600.0,0.00049851,38]
[342775013,1732140641348,-150.0,0.00049853,7]
[342775015,1732140641358,-208.19830613,0.00049858,4]
[342775017,1732140641368,-5816.09580696,0.00049858,3]
[342775019,1732140641378,-15952.92646366,0.0004986,120]
[342775021,1732140641388,-131023.31484291,0.00049861,4]
[342775023,1732140641399,-150.0,0.00049861,7]
[342775025,1732140641408,-3959.0365824,0.00049862,3]
[342775027,1732140641418,-131023.31484291,0.00049869,4]
[342775029,1732140641428,-319.58508991,0.0004987,4]
[342775031,1732140641437,-24515.99317063,0.00049871,4]
[342775033,1732140641447,-12426.68992078,0.00049873,4]
[342775035,1732140641457,-418.67498329,0.00049873,4]
[342775037,1732140641466,-2110.0,0.0004988,30]
[342775039,1732140641476,-452.62160357,0.00049885,3]
[342775041,1732140641485,-150.0,0.00049885,7]
[342775043,1732140641495,-5816.09580696,0.0004989,3]
[342775045,1732140641505,-131023.31484291,0.00049891,4]
[342775047,1732140641515,-131023.31484291,0.00049891,4]
[342775049,1732140641524,-24515.99317063,0.00049897,4]
[342775051,1732140641535,-12426.68992078,0.00049899,4]
[342775053,1732140641545,-4490.95579602,0.000499,16]
[342775055,1732140641555,-700.0,0.000499,18]
[342775057,1732140641565,-42050.16881733,0.000499,15]
[342775059,1732140641575,-5379.88862143,0.00049901,4]
[342775061,1732140641585,-150.0,0.00049901,7]
[342775063,1732140641594,-163779.14355367,0.00049901,3]
[342775065,1732140641604,-418.67498329,0.00049903,4]
[342775067,1732140641614,-13434.25937382,0.00049905,3]
[342775069,1732140641623,-150.0,0.0004991,7]
[342775071,1732140641633,-452.62160357,0.00049913,3]
[342775073,1732140641643,-24515.99317063,0.00049913,4]
[342775075,1732140641653,-345.49739451,0.00049914,3]
[342775077,1732140641663,-150.0,0.00049914,7]
[342775079,1732140641672,-12426.68992078,0.00049919,4]
[342775081,1732140641682,-163779.14355367,0.00049922,3]
[342775083,1732140641692,-452.62160357,0.00049923,3]
[342775085,1732140641701,-3959.0365824,0.00049924,3]
[342775087,1732140641711,-12426.68992078,0.00049928,4]
[342775089,1732140641721,-3662.10883871,0.00049931,4]
[342775091,1732140641730,-319.58508991,0.00049937,4]
[342775093,1732140641740,-131023.31484291,0.00049951,4]
[342775095,1732140641749,-18486.02614181,0.00049956,4]
[342775097,1732140641759,-24515.99317063,0.00049958,4]
[342775099,1732140641768,-418.67498329,0.0004996,4]
[342775101,1732140641778,-225.07924988,0.00049961,3]
[342775103,1732140641787,-12426.68992078,0.00049968,4]
[342775105,1732140641798,-150.0,0.00049971,7]
[342775107,1732140641808,-19984.89312628,0.00049972,3]
[342775109,1732140641817,-131023.31484291,0.00049974,4]
[342775111,1732140641827,-234.49161423,0.00049975,14]
[342775114,1732140641837,-24515.99317063,0.00049979,4]
[342775116,1732140641847,-12426.68992078,0.00049982,4]
[342775118,1732140641856,-5816.09580696,0.00049983,3]
[342775120,1732140641867,-150.0,0.00049986,7]
[342775122,1732140641876,-26503.77640069,0.00049986,3]
[342775123,1732140641885,-1240.264077,0.00049988,120]
[342775125,1732140641896,-18486.02614181,0.00049988,4]
[342775127,1732140641906,-345.49739451,0.00049993,3]
[342775129,1732140641915,-218.76806926,0.00049993,3]
[342775131,1732140641925,-24515.99317063,0.00049999,4]
[342775133,1732140641935,-50000.0,0.0005,30]
[342775135,1732140641944,-50000.0,0.0005,40]
[342775137,1732140641953,-50000.0,0.0005,50]
[342775140,1732140641963,-298.17205065,0.0005,30]
[342775141,1732140641972,-4912.68300372,0.0005,30]
[342775144,1732140641982,-2000.0,0.0005,30]
[342775146,1732140641991,-20001.0,0.0005,120]
[342775147,1732140642001,-14410.0,0.0005,120]
[342775150,1732140642011,-83237.0032061,0.0005,2]
[342775151,1732140642020,-394.97154341,0.0005,10]
[342775153,1732140642029,-2000.0,0.0005,2]
[342775155,1732140642039,-2000.0,0.0005,3]
[342775157,1732140642048,-2549.8101271,0.0005,4]
[342775159,1732140642058,-27572.0,0.0005,16]
[342775161,1732140642068,-1358.91,0.0005,120]
[342775163,1732140642077,-200.0,0.0005,120]
[342775165,1732140642086,-5942.71,0.0005,120]
[342775167,1732140642096,-12500.0,0.0005,120]
[342775169,1732140642106,-1678.52,0.0005,120]
[342775171,1732140642119,-156.96,0.0005,120]
[342775173,1732140642129,-2790.48,0.0005,120]
[342775175,1732140642138,-2337.18,0.0005,120]
[342775177,1732140642147,-5217.0,0.0005,30]
[342775179,1732140642156,-32375.55026124,0.0005,120]
[342775181,1732140642166,-150.0,0.00050004,7]
[342775183,1732140642175,-205.0,0.0005002,30]
[342775185,1732140642185,-150.0,0.00050023,7]
[342775187,1732140642195,-150.0,0.00050045,7]
[342775189,1732140642205,-150.0,0.0005005,7]
[342775191,1732140642215,-150.0,0.00050076,14]
[342775193,1732140642224,-150.0,0.00050083,14]
[342775195,1732140642233,-150.0,0.000501,7]
[342775197,1732140642243,-150.0,0.00050106,7]
[342775199,1732140642253,-150.0,0.00050113,14]
[342775201,1732140642263,-150.0,0.0005012,7]
[342775203,1732140642274,-150.0,0.00050149,7]
[342775205,1732140642283,-150.0,0.00050167,14]
[342775207,1732140642293,-150.0,0.00050176,14]
[342775209,1732140642302,-150.0,0.00050189,7]
[342775210,1732140642311,-150.0,0.00050193,7]
[342775212,1732140642321,-150.0,0.00050221,14]
[342775214,1732140642330,-150.0,0.00050221,7]
[342775216,1732140642340,-150.0,0.00050234,7]
[342775218,1732140642349,-12500.0,0.0005025,120]
[342775220,1732140642359,-150.0,0.00050261,14]
[342775222,1732140642369,-150.0,0.00050276,7]
[342775224,1732140642379,-150.0,0.00050277,7]
[342775226,1732140642388,-150.0,0.00050291,7]
[342775228,1732140642398,-150.0,0.00050306,14]
[342775230,1732140642408,-150.0,0.00050314,7]
[342775232,1732140642418,-150.0,0.00050332,7]
[342775234,1732140642428,-150.0,0.00050373,7]
[342775236,1732140642437,-2110.0,0.0005038,30]
[342775238,1732140642448,-150.0,0.0005038,7]
[342775240,1732140642458,-150.0,0.00050386,7]
[342775242,1732140642467,-150.0,0.00050388,14]
[342775244,1732140642476,-150.0,0.00050391,14]
[342775246,1732140642485,-150.0,0.00050408,7]
[342775279,1732140642763,-150.0,0.00050419,7]
[342775288,1732140642841,-150.0,0.0005043,7]
[342775290,1732140642851,-150.0,0.00050439,7]
[342775292,1732140642862,-150.0,0.00050453,7]
[342775295,1732140642872,-150.0,0.00050463,14]
[342775297,1732140642882,-150.0,0.00050482,7]
[342775298,1732140642891,-150.0,0.00050491,7]
[342775299,1732140642900,-181113.42907271,0.000505,120]
[342775300,1732140642910,-12227.9,0.000505,120]
[342775301,1732140642920,-150.0,0.00050512,7]
[342775302,1732140642931,-150.0,0.00050521,14]
[342775303,1732140642940,-150.0,0.00050527,14]
[342775304,1732140642950,-261.60435868,0.00050529,14]
[342775305,1732140642960,-150.0,0.00050541,14]
[342775307,1732140642971,-150.0,0.00050542,7]
[342775309,1732140642980,-150.0,0.00050546,7]
[342775311,1732140642990,-150.0,0.00050585,7]
[342775312,1732140642999,-150.0,0.00050597,7]
[342775313,1732140643009,-150.0,0.00050598,7]
[342775314,1732140643018,-150.0,0.00050627,7]
[342775315,1732140643028,-150.0,0.00050628,7]
[342775316,1732140643038,-150.0,0.00050645,7]
[342775317,1732140643048,-150.0,0.00050658,7]
[342775319,1732140643057,-150.0,0.00050662,14]
[342775321,1732140643067,-150.0,0.00050679,7]
[342775323,1732140643076,-150.0,0.00050683,7]
[342775325,1732140643086,-150.0,0.00050693,7]
[342775326,1732140643094,-150.0,0.00050702,7]
[342775327,1732140643105,-271.184,0.0005071,120]
[342775328,1732140643117,-150.0,0.00050719,7]
[342775329,1732140643127,-150.0,0.00050737,7]
[342775330,1732140643136,-150.0,0.0005074,7]
[342775331,1732140643145,-150.0,0.00050759,7]
[342775332,1732140643155,-150.0,0.0005076,14]
[342775333,1732140643164,-150.0,0.00050777,14]
[342775334,1732140643174,-150.0,0.00050779,14]
[342775335,1732140643184,-2335.45865019,0.00050794,90]
[342775336,1732140643194,-524.65743686,0.00050794,90]
[342775337,1732140643203,-150.0,0.00050796,7]
[342775338,1732140643213,-150.0,0.00050799,14]
[342775339,1732140643223,-300.0,0.00050799,14]
[342775340,1732140643232,-150.0,0.00050802,14]
[342775341,1732140643242,-150.0,0.00050825,14]
[342775342,1732140643251,-150.0,0.00050827,7]
[342775343,1732140643261,-150.0,0.00050832,14]
[342775344,1732140643270,-150.0,0.00050834,7]
[342775345,1732140643280,-150.0,0.00050836,14]
[342775346,1732140643291,-150.0,0.0005085,7]
[342775347,1732140643300,-150.0,0.00050855,14]
[342775348,1732140643310,-2000.0,0.00050859,2]
[342775349,1732140643320,-2000.0,0.00050859,2]
[342775350,1732140643332,-150.0,0.0005086,7]
[342775351,1732140643343,-150.0,0.00050869,7]
[342775352,1732140643353,-2754.0,0.00050878,70]
[342775353,1732140643363,-150.0,0.00050878,7]
[342775354,1732140643373,-2110.0,0.0005088,30]
[342775355,1732140643383,-150.0,0.0005088,14]
[342775356,1732140643392,-150.0,0.00050894,7]
[342775357,1732140643402,-150.0,0.00050917,14]
[342775358,1732140643412,-150.0,0.00050945,7]
[342775359,1732140643422,-150.0,0.00050951,14]
[342775360,1732140643431,-150.0,0.00050952,14]
[342775361,1732140643442,-150.0,0.0005096,7]
[342775363,1732140643452,-150.0,0.00050967,7]
[342775365,1732140643461,-150.0,0.00050994,7]
[342775367,1732140643471,-50000.0,0.00051,31]
[342775368,1732140643481,-50000.0,0.00051,41]
[342775369,1732140643491,-50000.0,0.00051,51]
[342775370,1732140643501,-3808.30422129,0.00051,60]
[342775371,1732140643511,-150.0,0.00051,100]
[342775372,1732140643520,-750.0,0.00051,2]
[342775373,1732140643530,-150.0,0.00051004,7]
[342775374,1732140643540,-150.0,0.00051012,14]
[342775375,1732140643550,-150.0,0.00051047,7]
[342775376,1732140643560,-150.0,0.00051068,14]
[342775377,1732140643570,-150.0,0.00051069,7]
[342775378,1732140643580,-150.0,0.0005107,14]
[342775380,1732140643590,-150.0,0.00051074,7]
[342775381,1732140643600,-150.0,0.00051092,14]
[342775382,1732140643610,-1042.8172,0.000511,2]
[342775383,1732140643620,-1042.8172,0.000511,2]
[342775384,1732140643630,-632.7666,0.000511,2]
[342775385,1732140643640,-632.7666,0.000511,2]
[342775386,1732140643649,-164.198405,0.000511,120]
[342775387,1732140643660,-150.0,0.00051111,7]
[342775388,1732140643669,-1115.12005779,0.00051123,120]
[342775389,1732140643679,-800.0,0.00051216,120]
[342775390,1732140643689,-2110.0,0.0005138,30]
[342775391,1732140643698,-5306.6,0.00051412,117]
[342775392,1732140643708,-3000.0,0.000515,2]
[342775393,1732140643718,-150.0,0.000515,101]
[342775394,1732140643729,-152.0,0.00051524,3]
[342775395,1732140643739,-342.97,0.00051619,2]
[342775396,1732140643748,-888.1554,0.00051621,2]
[342775397,1732140643757,-2000.0,0.00051621,2]
[342775398,1732140643767,-2000.0,0.00051621,2]
[342775399,1732140643776,-2000.0,0.00051621,2]
[342775400,1732140643786,-154.71,0.00051836,2]
[342775401,1732140643796,-1054.0,0.0005188,30]
[342775402,1732140643806,-209968.05072956,0.0005188,30]
[342775403,1732140643816,-205.0,0.0005188,30]
[342775404,1732140643825,-2110.0,0.0005188,30]
[342775405,1732140643835,-50000.0,0.00052,52]
[342775406,1732140643844,-50000.0,0.00052,42]
[342775407,1732140643854,-50000.0,0.00052,32]
[342775408,1732140643868,-6812.01969236,0.00052,120]
[342775409,1732140643879,-3332.847564,0.00052,120]
[342775410,1732140643889,-950.0,0.00052,120]
[342775411,1732140643898,-150.0,0.00052,120]
[342775412,1732140643908,-998.33101163,0.00052,120]
[342775413,1732140643918,-450.0,0.00052,120]